[Event "*** Titled Tuesday 3|2 Blitz"]
[Site "Chess.com"]
[Date "2016.01.05"]
[Round "7"]
[White "VSERGUEI"]
[Black "Lupul_Cenusiu"]
[Result "1/2-1/2"]
[WhiteElo "2415"]
[BlackElo "2378"]
[TimeControl "180+2"]
[EndTime "12:28:59 PST"]
[Termination "Game drawn by repetition"]

1. d4 {[%clk 0:03:01.9]} 1... Nf6 {[%clk 0:02:59.6]} 2. c4 {[%clk 0:03:02.4]}
2... g6 {[%clk 0:03:00.9]} 3. Nc3 {[%clk 0:03:03]} 3... Bg7 {[%clk 0:03:02.2]}
4. e4 {[%clk 0:03:03.6]} 4... d6 {[%clk 0:03:03.4]} 5. Nf3 {[%clk 0:03:04.8]}
5... O-O {[%clk 0:03:04.6]} 6. Be2 {[%clk 0:03:06]} 6... c5 {[%clk 0:03:05.3]}
7. d5 {[%clk 0:03:06.5]} 7... Bg4 {[%clk 0:03:04.5]} 8. Ng1 {[%clk 0:03:01.5]}
8... Bxe2 {[%clk 0:03:03]} 9. Ngxe2 {[%clk 0:03:02.3]} 9... a6 {[%clk
0:03:03.5]} 10. a4 {[%clk 0:03:02.7]} 10... Nbd7 {[%clk 0:03:01.5]} 11. O-O
{[%clk 0:03:02.6]} 11... Re8 {[%clk 0:03:02.6]} 12. b3 {[%clk 0:02:54.3]} 12...
e6 {[%clk 0:02:51.9]} 13. dxe6 {[%clk 0:02:50.6]} 13... Rxe6 {[%clk 0:02:52.7]}
14. f3 {[%clk 0:02:51.2]} 14... Ne5 {[%clk 0:02:51.6]} 15. Bg5 {[%clk
0:02:47.7]} 15... h6 {[%clk 0:02:50.7]} 16. Bxf6 {[%clk 0:02:46.1]} 16... Bxf6
{[%clk 0:02:50.7]} 17. Nd5 {[%clk 0:02:46.4]} 17... Bg7 {[%clk 0:02:50]} 18. Qd2
{[%clk 0:02:41.5]} 18... Nc6 {[%clk 0:02:49.9]} 19. Rad1 {[%clk 0:02:41.4]}
19... Rb8 {[%clk 0:02:46.1]} 20. Ndf4 {[%clk 0:02:38.3]} 20... Rf6 {[%clk
0:02:38.4]} 21. Kh1 {[%clk 0:02:32.3]} 21... h5 {[%clk 0:02:32.5]} 22. Nd5
{[%clk 0:02:27.2]} 22... Re6 {[%clk 0:02:32.3]} 23. Nef4 {[%clk 0:02:19.8]}
23... Re8 {[%clk 0:02:30.8]} 24. Qd3 {[%clk 0:02:10.9]} 24... Ne5 {[%clk
0:02:16]} 25. Qe2 {[%clk 0:02:11.2]} 25... Nc6 {[%clk 0:02:17.2]} 26. Rfe1
{[%clk 0:02:10.1]} 26... Nd4 {[%clk 0:02:15.7]} 27. Qd3 {[%clk 0:02:10.6]} 27...
b5 {[%clk 0:02:16.6]} 28. cxb5 {[%clk 0:02:02.2]} 28... axb5 {[%clk 0:02:17.5]}
29. Ne2 {[%clk 0:02:02.3]} 29... bxa4 {[%clk 0:02:06.4]} 30. Nxd4 {[%clk
0:02:02.9]} 30... Bxd4 {[%clk 0:02:06.3]} 31. bxa4 {[%clk 0:02:03.7]} 31... Rb2
{[%clk 0:01:58.7]} 32. Re2 {[%clk 0:01:57.4]} 32... Qb8 {[%clk 0:01:55.5]} 33.
a5 {[%clk 0:01:56.3]} 33... Kf8 {[%clk 0:01:19.5]} 34. a6 {[%clk 0:01:53.8]}
34... Qb3 {[%clk 0:01:18.8]} 35. Qxb3 {[%clk 0:01:51.8]} 35... Rxb3 {[%clk
0:01:19]} 36. Nc7 {[%clk 0:01:45.7]} 36... Rc8 {[%clk 0:01:15.2]} 37. a7 {[%clk
0:01:45.6]} 37... Ra3 {[%clk 0:01:16.1]} 38. Nb5 {[%clk 0:01:39.9]} 38... Ra6
{[%clk 0:01:03.9]} 39. g3 {[%clk 0:01:31.6]} 39... Rcc6 {[%clk 0:00:52.9]} 40.
Red2 {[%clk 0:01:27.1]} 40... Rcb6 {[%clk 0:00:53]} 41. Nxd4 {[%clk 0:01:23.3]}
41... cxd4 {[%clk 0:00:53.6]} 42. Rxd4 {[%clk 0:01:24.5]} 42... Rxa7 {[%clk
0:00:54.5]} 43. Rxd6 {[%clk 0:01:25.2]} 43... Rxd6 {[%clk 0:00:55.4]} 44. Rxd6
{[%clk 0:01:26.1]} 44... Ra2 {[%clk 0:00:56.4]} 45. h4 {[%clk 0:01:22.5]} 45...
Rf2 {[%clk 0:00:56]} 46. Rd3 {[%clk 0:01:22.4]} 46... Ke7 {[%clk 0:00:56.5]} 47.
Kg1 {[%clk 0:01:23.5]} 47... Re2 {[%clk 0:00:57.2]} 48. Kf1 {[%clk 0:01:24.2]}
48... Ra2 {[%clk 0:00:57.3]} 49. Re3 {[%clk 0:01:25.3]} 49... Ke6 {[%clk
0:00:57.7]} 50. Re2 {[%clk 0:01:26.6]} 50... Ra1+ {[%clk 0:00:57.4]} 51. Kf2
{[%clk 0:01:27.5]} 51... Rh1 {[%clk 0:00:58.3]} 52. Rd2 {[%clk 0:01:26.4]} 52...
Rh2+ {[%clk 0:00:58.1]} 53. Ke3 {[%clk 0:01:27]} 53... Rh1 {[%clk 0:00:58.8]}
54. Kf4 {[%clk 0:01:27.2]} 54... Kf6 {[%clk 0:01:00.1]} 55. Rd6+ {[%clk
0:01:24.8]} 55... Kg7 {[%clk 0:01:01]} 56. Rd3 {[%clk 0:01:22.6]} 56... Ra1
{[%clk 0:01:01.2]} 57. Ke5 {[%clk 0:01:20.7]} 57... Ra5+ {[%clk 0:01:00.6]} 58.
Kd4 {[%clk 0:01:21.7]} 58... Ra4+ {[%clk 0:01:01.3]} 59. Ke3 {[%clk 0:01:22.7]}
59... Ra5 {[%clk 0:01:01.6]} 60. f4 {[%clk 0:01:22.2]} 60... Ra4 {[%clk
0:01:02.3]} 61. Kf3 {[%clk 0:01:18.9]} 61... Rb4 {[%clk 0:01:03.3]} 62. e5
{[%clk 0:01:16.3]} 62... Ra4 {[%clk 0:01:02.4]} 63. Rd7 {[%clk 0:01:13.9]} 63...
Ra3+ {[%clk 0:01:03.5]} 64. Ke4 {[%clk 0:01:14.8]} 64... Ra4+ {[%clk 0:01:03.1]}
65. Kd5 {[%clk 0:01:13.9]} 65... Ra5+ {[%clk 0:01:04.3]} 66. Kd6 {[%clk
0:01:14.6]} 66... Ra3 {[%clk 0:01:03.2]} 67. e6 {[%clk 0:01:13.4]} 67... Ra6+
{[%clk 0:01:03.6]} 68. Kd5 {[%clk 0:01:06.2]} 68... Rxe6 {[%clk 0:01:05.5]} 69.
Kd4 {[%clk 0:01:06.2]} 69... Re1 {[%clk 0:01:04.9]} 70. Rc7 {[%clk 0:01:04.8]}
70... Kf6 {[%clk 0:01:02.4]} 71. Rc5 {[%clk 0:01:05]} 71... Rg1 {[%clk
0:01:01.8]} 72. Rg5 {[%clk 0:01:05.9]} 72... Re1 {[%clk 0:00:57.7]} 73. Ra5
{[%clk 0:01:01.9]} 73... Re6 {[%clk 0:00:58.1]} 74. Rd5 {[%clk 0:00:57.1]} 74...
Kg7 {[%clk 0:00:56.9]} 75. Re5 {[%clk 0:00:57.4]} 75... Ra6 {[%clk 0:00:57.9]}
76. Ke3 {[%clk 0:00:48.3]} 76... Kf6 {[%clk 0:00:55.4]} 77. Kf2 {[%clk
0:00:46.1]} 77... Ra2+ {[%clk 0:00:54]} 78. Kf3 {[%clk 0:00:45.7]} 78... Ra3+
{[%clk 0:00:55]} 79. Kf2 {[%clk 0:00:46.6]} 79... Ra2+ {[%clk 0:00:56.4]} 80.
Kf3 {[%clk 0:00:47.8]} 80... Ra3+ {[%clk 0:00:57.8]} 81. Kf2 {[%clk 0:00:49]}
81... Ra2+ {[%clk 0:00:59.1]} 1/2-1/2

[Event "*** Titled Tuesday 3|2 Blitz"]
[Site "Chess.com"]
[Date "2016.01.05"]
[Round "7"]
[White "jk13"]
[Black "KNVB"]
[Result "1-0"]
[WhiteElo "2305"]
[BlackElo "2386"]
[TimeControl "180+2"]
[EndTime "12:29:16 PST"]
[Termination "jk13 won on time"]

1. e4 {[%clk 0:03:01.5]} 1... b6 {[%clk 0:02:59.1]} 2. d4 {[%clk 0:03:02.5]}
2... Bb7 {[%clk 0:02:59.5]} 3. Nc3 {[%clk 0:03:04.1]} 3... e6 {[%clk 0:03:00.6]}
4. Bd3 {[%clk 0:03:05.7]} 4... Bb4 {[%clk 0:03:01]} 5. Ne2 {[%clk 0:03:07.3]}
5... Ne7 {[%clk 0:03:02.5]} 6. O-O {[%clk 0:03:08.9]} 6... Nbc6 {[%clk
0:03:00.7]} 7. Be3 {[%clk 0:03:07.7]} 7... O-O {[%clk 0:03:00]} 8. a3 {[%clk
0:03:04.9]} 8... Bxc3 {[%clk 0:03:01.2]} 9. Nxc3 {[%clk 0:03:06.8]} 9... f5
{[%clk 0:03:02.6]} 10. d5 {[%clk 0:03:01.7]} 10... exd5 {[%clk 0:01:20.8]} 11.
exd5 {[%clk 0:03:02]} 11... Ne5 {[%clk 0:01:21.5]} 12. Be2 {[%clk 0:02:48.7]}
12... f4 {[%clk 0:01:14.6]} 13. Bd4 {[%clk 0:02:50.3]} 13... N7g6 {[%clk
0:01:06.5]} 14. f3 {[%clk 0:02:49.7]} 14... d6 {[%clk 0:01:03.5]} 15. Qd2 {[%clk
0:02:48.2]} 15... a6 {[%clk 0:00:35.8]} 16. Rae1 {[%clk 0:02:45]} 16... Qd7
{[%clk 0:00:32.8]} 17. Rf2 {[%clk 0:02:44.5]} 17... Qf7 {[%clk 0:00:28.6]} 18.
Bf1 {[%clk 0:02:40.8]} 18... b5 {[%clk 0:00:27.5]} 19. Rfe2 {[%clk 0:02:38.2]}
19... Nc4 {[%clk 0:00:20.6]} 20. Qc1 {[%clk 0:02:36.2]} 20... Bxd5 {[%clk
0:00:21.7]} 21. Nxd5 {[%clk 0:02:31.3]} 21... Qxd5 {[%clk 0:00:23.6]} 22. Bc3
{[%clk 0:02:29.9]} 22... Qf7 {[%clk 0:00:22.6]} 23. b3 {[%clk 0:02:26]} 23...
Ne3 {[%clk 0:00:24]} 24. Bd2 {[%clk 0:02:24.2]} 24... Nf5 {[%clk 0:00:21.6]} 25.
Re4 {[%clk 0:02:19.5]} 25... d5 {[%clk 0:00:18.7]} 26. R4e2 {[%clk 0:02:09.8]}
26... Nd4 {[%clk 0:00:18.6]} 27. Rf2 {[%clk 0:02:11.1]} 27... Rae8 {[%clk
0:00:19.5]} 28. Bd3 {[%clk 0:02:07.4]} 28... Rxe1+ {[%clk 0:00:19.3]} 29. Qxe1
{[%clk 0:02:08.4]} 29... Re8 {[%clk 0:00:20.1]} 30. Qf1 {[%clk 0:02:09.8]} 30...
Ne5 {[%clk 0:00:19.9]} 31. a4 {[%clk 0:02:03]} 31... c6 {[%clk 0:00:18.9]} 32.
h3 {[%clk 0:02:02.4]} 32... g5 {[%clk 0:00:10.6]} 33. Bc3 {[%clk 0:01:43]} 33...
Nf5 {[%clk 0:00:10.2]} 34. Bxf5 {[%clk 0:01:41.6]} 34... Qxf5 {[%clk 0:00:11]}
35. Re2 {[%clk 0:01:42.6]} 35... Kf7 {[%clk 0:00:05.9]} 36. Qe1 {[%clk
0:01:42.5]} 36... Kf6 {[%clk 0:00:06.7]} 37. axb5 {[%clk 0:01:41.9]} 37... axb5
{[%clk 0:00:08.6]} 38. b4 {[%clk 0:01:41.9]} 38... Re6 {[%clk 0:00:08.7]} 39.
Bd4 {[%clk 0:01:42.5]} 39... h5 {[%clk 0:00:10.1]} 40. Qa1 {[%clk 0:01:41.6]}
40... g4 {[%clk 0:00:07.3]} 41. hxg4 {[%clk 0:01:30.3]} 41... hxg4 {[%clk
0:00:09.2]} 42. fxg4 {[%clk 0:01:31.8]} 42... Qg5 {[%clk 0:00:10.8]} 43. Qa8
{[%clk 0:01:27]} 43... Kf7 {[%clk 0:00:04.3]} 44. Qb7+ {[%clk 0:01:21.5]} 44...
Re7 {[%clk 0:00:04.8]} 45. Qc8 {[%clk 0:01:20.9]} 45... Nf3+ {[%clk 0:00:05.1]}
46. gxf3 {[%clk 0:01:14.2]} 46... Rxe2 {[%clk 0:00:07]} 47. Qxc6 {[%clk
0:01:11]} 47... Qe7 {[%clk 0:00:03.9]} 48. Qxd5+ {[%clk 0:01:10.4]} 48... Qe6
{[%clk 0:00:05.6]} 49. Qh5+ {[%clk 0:00:58.5]} 49... Ke7 {[%clk 0:00:06]} 50.
Qg5+ {[%clk 0:00:56.1]} 50... Kd6 {[%clk 0:00:03.7]} 51. Qxf4+ {[%clk
0:00:53.7]} 51... Kd5 {[%clk 0:00:03.2]} 52. Bf2 {[%clk 0:00:52]} 52... Rxc2
{[%clk 0:00:03.3]} 53. Qd4+ {[%clk 0:00:52.1]} 53... Kc6 {[%clk 0:00:04.8]} 54.
Qb6+ {[%clk 0:00:53.7]} 54... Kd7 {[%clk 0:00:06]} 55. Qxb5+ {[%clk 0:00:55.2]}
55... Qc6 {[%clk 0:00:05.5]} 56. Qf5+ {[%clk 0:00:52.3]} 56... Kc7 {[%clk
0:00:07.1]} 57. b5 {[%clk 0:00:50.6]} 57... Qc4 {[%clk 0:00:07.2]} 58. b6+
{[%clk 0:00:47.2]} 58... Kc6 {[%clk 0:00:06.7]} 59. Qc8+ {[%clk 0:00:47.2]}
59... Kb5 {[%clk 0:00:04.6]} 60. Qxc4+ {[%clk 0:00:46.3]} 60... Kxc4 {[%clk
0:00:06.5]} 61. Bg3 {[%clk 0:00:45.7]} 61... Rb2 {[%clk 0:00:07]} 62. Bc7 {[%clk
0:00:46.6]} 62... Kd3 {[%clk 0:00:08.5]} 63. g5 {[%clk 0:00:47.6]} 63... Ke3
{[%clk 0:00:08.6]} 64. f4 {[%clk 0:00:48.3]} 64... Kf3 {[%clk 0:00:09.7]} 65. f5
{[%clk 0:00:46.4]} 65... Rb1+ {[%clk 0:00:05.1]} 66. Kh2 {[%clk 0:00:47.5]}
66... Rb2+ {[%clk 0:00:06.2]} 67. Kh3 {[%clk 0:00:48.8]} 67... Rb1 {[%clk
0:00:05.6]} 68. g6 {[%clk 0:00:47.4]} 68... Rh1+ {[%clk 0:00:05.4]} 69. Bh2
{[%clk 0:00:49]} 69... Rd1 {[%clk 0:00:03.6]} 70. g7 {[%clk 0:00:47.1]} 70...
Rd8 {[%clk 0:00:04.3]} 71. Bc7 {[%clk 0:00:44.2]} 71... Re8 {[%clk 0:00:03.3]}
72. b7 {[%clk 0:00:43.9]} 72... Re7 {[%clk 0:00:02.6]} 73. g8=Q {[%clk
0:00:42.9]} 1-0

[Event "*** Titled Tuesday 3|2 Blitz"]
[Site "Chess.com"]
[Date "2016.01.05"]
[Round "7"]
[White "GMCanty"]
[Black "oggy1984"]
[Result "1-0"]
[WhiteElo "2221"]
[BlackElo "2165"]
[TimeControl "180+2"]
[EndTime "12:29:20 PST"]
[Termination "GMCanty won by resignation"]

1. e4 {[%clk 0:03:01.9]} 1... c6 {[%clk 0:02:57.9]} 2. d4 {[%clk 0:03:02.7]}
2... d5 {[%clk 0:02:58.2]} 3. exd5 {[%clk 0:03:04.6]} 3... cxd5 {[%clk
0:02:58.4]} 4. Bd3 {[%clk 0:03:05.6]} 4... Nf6 {[%clk 0:02:57.8]} 5. c3 {[%clk
0:03:06.6]} 5... Qc7 {[%clk 0:02:56.5]} 6. Ne2 {[%clk 0:03:06.9]} 6... Nc6
{[%clk 0:02:57.1]} 7. Bf4 {[%clk 0:03:06.9]} 7... Qb6 {[%clk 0:02:57.1]} 8. b3
{[%clk 0:03:05.3]} 8... Bg4 {[%clk 0:02:56.2]} 9. O-O {[%clk 0:03:05.4]} 9... e6
{[%clk 0:02:56]} 10. Nd2 {[%clk 0:03:05.3]} 10... Be7 {[%clk 0:02:55.1]} 11. h3
{[%clk 0:03:01]} 11... Bh5 {[%clk 0:02:54.9]} 12. Re1 {[%clk 0:03:01.5]} 12...
O-O {[%clk 0:02:54.7]} 13. Rc1 {[%clk 0:03:01.2]} 13... Rac8 {[%clk 0:02:52.2]}
14. Nf1 {[%clk 0:02:59.8]} 14... Qa5 {[%clk 0:02:46.1]} 15. Qd2 {[%clk
0:02:57.3]} 15... Rfd8 {[%clk 0:02:34.9]} 16. Nfg3 {[%clk 0:02:58.2]} 16... Bg6
{[%clk 0:02:33.5]} 17. Bg5 {[%clk 0:02:58.6]} 17... Bxd3 {[%clk 0:02:22.9]} 18.
Qxd3 {[%clk 0:03:00.5]} 18... h6 {[%clk 0:02:23.1]} 19. Bxf6 {[%clk 0:03:00.7]}
19... Bxf6 {[%clk 0:02:23.4]} 20. a4 {[%clk 0:03:01.3]} 20... Qc7 {[%clk
0:01:55.4]} 21. Nh5 {[%clk 0:03:01.7]} 21... Be7 {[%clk 0:01:51.3]} 22. Nef4
{[%clk 0:03:00]} 22... Bd6 {[%clk 0:01:50.1]} 23. Qf3 {[%clk 0:02:58.9]} 23...
Ne7 {[%clk 0:01:44.1]} 24. Qg4 {[%clk 0:02:58.6]} 24... g6 {[%clk 0:01:30.1]}
25. Nf6+ {[%clk 0:02:36.7]} 25... Kh8 {[%clk 0:01:25]} 26. Nd3 {[%clk
0:02:30.6]} 26... Nf5 {[%clk 0:01:15.4]} 27. Ne5 {[%clk 0:02:25.6]} 27... Bxe5
{[%clk 0:01:14.1]} 28. dxe5 {[%clk 0:02:26.5]} 28... d4 {[%clk 0:01:04.5]} 29.
c4 {[%clk 0:02:14.9]} 29... d3 {[%clk 0:01:02.8]} 30. Rcd1 {[%clk 0:02:16.2]}
30... Rd4 {[%clk 0:00:53.5]} 31. Qf3 {[%clk 0:02:11.1]} 31... Rcd8 {[%clk
0:00:50.6]} 32. g4 {[%clk 0:02:04]} 32... d2 {[%clk 0:00:47.1]} 33. Re2 {[%clk
0:01:58.7]} 33... Rd3 {[%clk 0:00:45.9]} 34. Qf4 {[%clk 0:01:57.1]} 34... g5
{[%clk 0:00:44.3]} 35. Qh2 {[%clk 0:01:40.5]} 35... Nd4 {[%clk 0:00:30.9]} 36.
Kf1 {[%clk 0:01:36.2]} 36... Nf3 {[%clk 0:00:19]} 37. Qg3 {[%clk 0:01:32.4]}
37... Qc6 {[%clk 0:00:17.2]} 38. Re3 {[%clk 0:01:26.8]} 38... Rxe3 {[%clk
0:00:14.3]} 39. fxe3 {[%clk 0:01:28.7]} 39... Nh4 {[%clk 0:00:12.9]} 40. Ke2
{[%clk 0:01:25.4]} 40... Ng2 {[%clk 0:00:08.5]} 41. Rxd2 {[%clk 0:01:22.7]}
41... Rxd2+ {[%clk 0:00:08.1]} 42. Kxd2 {[%clk 0:01:24.6]} 42... Kg7 {[%clk
0:00:04.4]} 43. e4 {[%clk 0:01:25.6]} 43... Nf4 {[%clk 0:00:04.6]} 44. h4 {[%clk
0:01:26.5]} 44... Qc5 {[%clk 0:00:04.9]} 45. hxg5 {[%clk 0:01:20.7]} 45... hxg5
{[%clk 0:00:06.8]} 46. Nh5+ {[%clk 0:01:19.8]} 46... Nxh5 {[%clk 0:00:06.7]} 47.
gxh5 {[%clk 0:01:21.7]} 47... Kh6 {[%clk 0:00:08.6]} 48. Kc3 {[%clk 0:01:21.6]}
48... a5 {[%clk 0:00:07.8]} 49. Qh2 {[%clk 0:01:20.8]} 49... Qb4+ {[%clk
0:00:08.2]} 50. Kc2 {[%clk 0:01:21.4]} 50... Qe1 {[%clk 0:00:08.5]} 51. Qg2
{[%clk 0:01:19.4]} 51... Qe3 {[%clk 0:00:08.3]} 52. Qg4 {[%clk 0:01:17.6]} 52...
Qf2+ {[%clk 0:00:06.5]} 53. Kd3 {[%clk 0:01:17.4]} 53... Qf1+ {[%clk 0:00:07]}
54. Kd4 {[%clk 0:01:17.5]} 54... Qf2+ {[%clk 0:00:06.8]} 55. Kc3 {[%clk
0:01:18.9]} 55... Qe1+ {[%clk 0:00:07]} 56. Kd4 {[%clk 0:01:19.7]} 56... Qd2+
{[%clk 0:00:05.8]} 57. Kc5 {[%clk 0:01:20.5]} 57... Qb4+ {[%clk 0:00:06.6]} 58.
Kd4 {[%clk 0:01:22]} 58... Qd2+ {[%clk 0:00:06.1]} 59. Kc5 {[%clk 0:01:23.2]}
59... Qb4+ {[%clk 0:00:05.1]} 60. Kd4 {[%clk 0:01:24.5]} 60... Qxb3 {[%clk
0:00:05.4]} 61. c5 {[%clk 0:01:24.9]} 61... Qb4+ {[%clk 0:00:05.9]} 62. Kd3
{[%clk 0:01:26.1]} 62... Qb3+ {[%clk 0:00:06.9]} 63. Kd4 {[%clk 0:01:26.7]}
63... Qxa4+ {[%clk 0:00:08]} 64. Ke3 {[%clk 0:01:28]} 64... Qa3+ {[%clk
0:00:08.2]} 65. Kd4 {[%clk 0:01:29.2]} 65... Qb4+ {[%clk 0:00:09.3]} 66. Kd3
{[%clk 0:01:30.5]} 66... Qxc5 {[%clk 0:00:11.2]} 67. Qg2 {[%clk 0:01:30.7]}
67... Qxe5 {[%clk 0:00:11.6]} 68. Qf3 {[%clk 0:01:31.1]} 68... f6 {[%clk
0:00:12.3]} 69. Kc4 {[%clk 0:01:31.5]} 69... b5+ {[%clk 0:00:13.2]} 70. Kb3
{[%clk 0:01:32.3]} 70... a4+ {[%clk 0:00:13.7]} 71. Kb4 {[%clk 0:01:32.8]} 71...
f5 {[%clk 0:00:14.2]} 72. exf5 {[%clk 0:01:33.5]} 72... exf5 {[%clk 0:00:14.6]}
73. Qc6+ {[%clk 0:01:34.2]} 73... Kxh5 {[%clk 0:00:15.3]} 74. Qe8+ {[%clk
0:01:36.1]} 74... Kg4 {[%clk 0:00:15.4]} 75. Qxe5 {[%clk 0:01:36.5]} 75... f4
{[%clk 0:00:14.8]} 76. Qxb5 {[%clk 0:01:37.6]} 76... f3 {[%clk 0:00:15]} 77. Qf1
{[%clk 0:01:37.3]} 77... Kg3 {[%clk 0:00:14.5]} 78. Kxa4 {[%clk 0:01:38.6]}
78... f2 {[%clk 0:00:15]} 79. Kb3 {[%clk 0:01:40.2]} 79... Kf3 {[%clk 0:00:16]}
80. Kc2 {[%clk 0:01:41.8]} 80... g4 {[%clk 0:00:17.9]} 81. Kd2 {[%clk
0:01:41.3]} 81... g3 {[%clk 0:00:18.8]} 82. Qh3 {[%clk 0:01:39.9]} 1-0

[Event "*** Titled Tuesday 3|2 Blitz"]
[Site "Chess.com"]
[Date "2016.01.05"]
[Round "7"]
[White "MinhGTrAn"]
[Black "Matibar"]
[Result "0-1"]
[WhiteElo "2578"]
[BlackElo "2473"]
[TimeControl "180+2"]
[EndTime "12:29:22 PST"]
[Termination "Matibar won by resignation"]

1. d4 {[%clk 0:03:01.9]} 1... f5 {[%clk 0:03:00.9]} 2. Bf4 {[%clk 0:02:53.2]}
2... Nf6 {[%clk 0:03:00.6]} 3. e3 {[%clk 0:02:54.7]} 3... d6 {[%clk 0:03:00.6]}
4. Nf3 {[%clk 0:02:54.5]} 4... g6 {[%clk 0:02:59.4]} 5. c4 {[%clk 0:02:55.9]}
5... Bg7 {[%clk 0:03:00.5]} 6. Nc3 {[%clk 0:02:57.5]} 6... O-O {[%clk
0:03:01.3]} 7. h3 {[%clk 0:02:59.1]} 7... c6 {[%clk 0:02:58.8]} 8. Be2 {[%clk
0:02:59.7]} 8... Kh8 {[%clk 0:02:58.8]} 9. O-O {[%clk 0:03:01.1]} 9... Be6
{[%clk 0:02:59.6]} 10. Bh2 {[%clk 0:02:57.2]} 10... Bg8 {[%clk 0:03:00.3]} 11.
b4 {[%clk 0:02:57.7]} 11... Nbd7 {[%clk 0:03:00.4]} 12. a4 {[%clk 0:02:58.1]}
12... Rc8 {[%clk 0:02:58.7]} 13. c5 {[%clk 0:02:46.8]} 13... Ne4 {[%clk
0:02:54.7]} 14. Qc2 {[%clk 0:02:28.4]} 14... dxc5 {[%clk 0:02:48.5]} 15. bxc5
{[%clk 0:01:58.1]} 15... Ndxc5 {[%clk 0:02:48.3]} 16. Be5 {[%clk 0:01:58.4]}
16... Nxc3 {[%clk 0:02:36.2]} 17. Qxc3 {[%clk 0:02:00.3]} 17... Ne6 {[%clk
0:02:22.1]} 18. Bxg7+ {[%clk 0:01:57.8]} 18... Nxg7 {[%clk 0:02:22.8]} 19. Ne5
{[%clk 0:01:54.1]} 19... f4 {[%clk 0:02:20.5]} 20. Bg4 {[%clk 0:01:41.7]} 20...
Rc7 {[%clk 0:02:21.4]} 21. e4 {[%clk 0:01:20.1]} 21... Qd6 {[%clk 0:02:09.3]}
22. Rfd1 {[%clk 0:01:07]} 22... Qf6 {[%clk 0:02:08.5]} 23. a5 {[%clk 0:00:57.5]}
23... Be6 {[%clk 0:02:04.7]} 24. Bf3 {[%clk 0:00:54.4]} 24... Rfc8 {[%clk
0:01:53.2]} 25. Rac1 {[%clk 0:00:52.9]} 25... h5 {[%clk 0:01:41.5]} 26. Qc5
{[%clk 0:00:53.5]} 26... a6 {[%clk 0:01:31.2]} 27. Rb1 {[%clk 0:00:53.6]} 27...
g5 {[%clk 0:01:31]} 28. Rb2 {[%clk 0:00:51.9]} 28... Bg8 {[%clk 0:01:25.2]} 29.
Rdb1 {[%clk 0:00:52.7]} 29... Ne6 {[%clk 0:01:25.7]} 30. Qc3 {[%clk 0:00:52.5]}
30... c5 {[%clk 0:01:24.2]} 31. dxc5 {[%clk 0:00:07.2]} 31... Rxc5 {[%clk
0:01:13.8]} 32. Ng6+ {[%clk 0:00:07.6]} 32... Kg7 {[%clk 0:01:14.7]} 33. Qxf6+
{[%clk 0:00:08.9]} 33... Kxf6 {[%clk 0:01:15.1]} 34. Bxh5 {[%clk 0:00:10.2]}
34... Bf7 {[%clk 0:01:09.3]} 35. e5+ {[%clk 0:00:10.2]} 35... Kg7 {[%clk
0:01:08.9]} 36. Rxb7 {[%clk 0:00:07.2]} 36... R8c7 {[%clk 0:01:03.2]} 37. Nxe7
{[%clk 0:00:07.8]} 37... Bxh5 {[%clk 0:01:02.8]} 38. R1b6 {[%clk 0:00:05]} 38...
Rxb7 {[%clk 0:00:47.1]} 39. Rxb7 {[%clk 0:00:06.9]} 39... Rc7 {[%clk 0:00:47.7]}
40. Nf5+ {[%clk 0:00:03.8]} 40... Kg6 {[%clk 0:00:45.8]} 41. Ne7+ {[%clk
0:00:03.7]} 41... Kf7 {[%clk 0:00:46.7]} 42. Nc8 {[%clk 0:00:04.4]} 42... Rxb7
{[%clk 0:00:47]} 43. Nd6+ {[%clk 0:00:06.3]} 43... Ke7 {[%clk 0:00:47.5]} 44.
Nxb7 {[%clk 0:00:08.2]} 44... Kd7 {[%clk 0:00:34]} 45. g3 {[%clk 0:00:08.2]}
45... fxg3 {[%clk 0:00:34.2]} 46. fxg3 {[%clk 0:00:09.4]} 46... Kc6 {[%clk
0:00:35.7]} 47. Nd6 {[%clk 0:00:09.8]} 47... Kd5 {[%clk 0:00:36.1]} 48. g4
{[%clk 0:00:05.6]} 48... Bg6 {[%clk 0:00:36.6]} 49. Nc8 {[%clk 0:00:05.6]} 49...
Kxe5 {[%clk 0:00:37]} 50. Kf2 {[%clk 0:00:07.2]} 50... Nf4 {[%clk 0:00:36.1]}
51. Kg3 {[%clk 0:00:07.6]} 51... Ne2+ {[%clk 0:00:37.1]} 52. Kf2 {[%clk
0:00:07.1]} 52... Bd3 {[%clk 0:00:37.1]} 53. Ne7 {[%clk 0:00:03.8]} 53... Nf4
{[%clk 0:00:37.3]} 54. Kg3 {[%clk 0:00:04.9]} 54... Ke6 {[%clk 0:00:36.9]} 55.
Nc6 {[%clk 0:00:05.8]} 55... Ng6 {[%clk 0:00:33.6]} 56. Nb4 {[%clk 0:00:06.4]}
56... Bb5 {[%clk 0:00:34.1]} 57. Kf3 {[%clk 0:00:07.7]} 57... Ke5 {[%clk
0:00:33.6]} 58. Ke3 {[%clk 0:00:08.8]} 58... Nf4 {[%clk 0:00:34.1]} 59. Nc2
{[%clk 0:00:04.3]} 59... Nxh3 {[%clk 0:00:34.7]} 60. Nd4 {[%clk 0:00:05.8]}
60... Nf4 {[%clk 0:00:27.1]} 61. Nf3+ {[%clk 0:00:06.1]} 61... Kf6 {[%clk
0:00:27.1]} 62. Nd4 {[%clk 0:00:07.5]} 62... Nd5+ {[%clk 0:00:26.4]} 63. Ke4
{[%clk 0:00:07.3]} 63... Nc7 {[%clk 0:00:27]} 64. Nb3 {[%clk 0:00:04.2]} 64...
Bd7 {[%clk 0:00:26.6]} 65. Kf3 {[%clk 0:00:05.3]} 65... Bc6+ {[%clk 0:00:27.6]}
66. Ke3 {[%clk 0:00:06]} 66... Ne6 {[%clk 0:00:29.2]} 67. Nd2 {[%clk 0:00:05.1]}
67... Bd5 {[%clk 0:00:30.3]} 68. Nb1 {[%clk 0:00:05.1]} 68... Ke5 {[%clk
0:00:31.3]} 69. Nc3 {[%clk 0:00:06.6]} 69... Nf4 {[%clk 0:00:31.6]} 70. Na4
{[%clk 0:00:06.5]} 70... Bc6 {[%clk 0:00:31.1]} 71. Nc5 {[%clk 0:00:06.9]} 71...
Bb5 {[%clk 0:00:32.3]} 72. Ne4 {[%clk 0:00:08.5]} 72... Nd5+ {[%clk 0:00:32.7]}
73. Kf3 {[%clk 0:00:09.5]} 73... Be2+ {[%clk 0:00:33.7]} 0-1

[Event "*** Titled Tuesday 3|2 Blitz"]
[Site "Chess.com"]
[Date "2016.01.05"]
[Round "8"]
[White "ZEN-22"]
[Black "jk13"]
[Result "0-1"]
[WhiteElo "2389"]
[BlackElo "2342"]
[TimeControl "180+2"]
[EndTime "12:32:13 PST"]
[Termination "jk13 won by checkmate"]

1. d3 {[%clk 0:03:01.9]} 1... e6 {[%clk 0:03:01.9]} 2. Nd2 {[%clk 0:03:02.8]}
2... d5 {[%clk 0:03:03.1]} 3. f4 {[%clk 0:03:04]} 3... Bc5 {[%clk 0:03:02.4]} 4.
Ngf3 {[%clk 0:03:02.9]} 4... Nf6 {[%clk 0:02:59.9]} 5. e4 {[%clk 0:02:55.9]}
5... Ng4 {[%clk 0:02:56.7]} 6. Nb3 {[%clk 0:02:53.2]} 6... Bf2+ {[%clk
0:02:54.6]} 7. Ke2 {[%clk 0:02:53.7]} 7... Bb6 {[%clk 0:02:56.5]} 8. Qe1 {[%clk
0:02:50.6]} 8... dxe4 {[%clk 0:02:55.7]} 9. dxe4 {[%clk 0:02:51.5]} 9... Nf2
{[%clk 0:02:57]} 10. c4 {[%clk 0:02:48.8]} 10... Nxe4 {[%clk 0:02:52.2]} 11. Ne5
{[%clk 0:02:42]} 11... Nd7 {[%clk 0:02:42.2]} 12. Kf3 {[%clk 0:02:42]} 12...
Nxe5+ {[%clk 0:02:42.7]} 13. Kxe4 {[%clk 0:02:42.5]} 13... f5+ {[%clk
0:02:36.9]} 14. Kxe5 {[%clk 0:02:43]} 14... Qf6# {[%clk 0:02:35.8]} 0-1